fUST/lending_fUST_20260120
["ID","MTS","AMOUNT","RATE_DAILY","PERIOD"]
[402810746,1768916528667,500.0,0.00027397,120]
[402810747,1768916530065,500.0,0.00027397,120]
[402810748,1768916530130,500.0,0.00027397,120]
[402810749,1768916530431,500.0,0.00027397,120]
[402810750,1768916531297,500.0,0.00027397,120]
[402810751,1768916533294,500.0,0.00027397,120]
[402810752,1768916533347,500.0,0.00027397,120]
[402810753,1768916533912,500.0,0.00027397,120]
[402810755,1768916535089,533.87958075,0.00027397,120]
[402810756,1768916538139,500.0,0.00027397,120]
[402810757,1768916538356,500.0,0.00027397,120]
[402810758,1768916538489,500.0,0.00027397,120]
[402810759,1768916538616,561.21,0.00027397,120]
[402810760,1768916539566,500.0,0.00027397,120]
[402810761,1768916539820,455.86,0.00027397,120]
[402810762,1768916542010,500.0,0.00027397,120]
[402810763,1768916545959,500.0,0.00027397,120]
[402810764,1768916546307,500.0,0.00027397,120]
[402810765,1768916547020,500.0,0.00027397,120]
[402810766,1768916547790,500.0,0.00027397,120]
[402810767,1768916548048,640.77,0.00027397,120]
[402810768,1768916548184,500.0,0.00027397,120]
[402810769,1768916548418,341.26,0.00027397,120]
[402810770,1768916550504,500.0,0.00027397,120]
[402810771,1768916550738,222.49,0.00027397,120]
[402810772,1768916551340,500.0,0.00027397,120]
[402810773,1768916551569,314.71,0.00027397,120]
[402810774,1768916552286,500.0,0.00027397,120]
[402810775,1768916552336,500.0,0.00027397,120]
[402810776,1768916554137,602.5,0.00027397,120]
[402810777,1768916555043,500.0,0.00027397,120]
[402810778,1768916555295,298.04,0.00027397,120]
[402810779,1768916556187,542.79,0.00027397,120]
[402810780,1768916557494,500.0,0.00027397,120]
[402810781,1768916557547,500.0,0.00027397,120]
[402810782,1768916557620,500.0,0.00027397,120]
[402810783,1768916557744,500.0,0.00027397,120]
[402810784,1768916557800,500.0,0.00027397,120]
[402810785,1768916557857,273.99,0.00027397,120]
[402810786,1768916557993,540.25,0.00027397,120]
[402810787,1768916558047,523.17,0.00027397,120]
[402810788,1768916558814,619.89,0.00027397,120]
[402810789,1768916559872,500.0,0.00027397,120]
[402810790,1768916560964,500.0,0.00027397,120]
[402810791,1768916561181,500.0,0.00027397,120]
[402810792,1768916561994,500.0,0.00027397,120]
[402810793,1768916564405,500.0,0.00027397,120]
[402810795,1768916567814,500.0,0.00027397,120]
[402810796,1768916569030,500.0,0.00027397,120]
[402810797,1768916571351,500.0,0.00027397,120]
[402810798,1768916572996,534.63,0.00027397,120]
[402810799,1768916576302,500.0,0.00027397,120]
[402810800,1768916578555,500.0,0.00027397,120]
[402810801,1768916579978,500.0,0.00027397,120]
[402810802,1768916580423,500.0,0.00027397,120]
[402810803,1768916582225,500.0,0.00027397,120]
[402810804,1768916591347,500.0,0.00027397,120]
[402810805,1768916591601,195.04,0.00027397,120]
[402810806,1768916593516,570.29,0.00027397,120]
[402810807,1768916594827,500.0,0.00027397,120]
[402810808,1768916595286,500.0,0.00027397,120]
[402810809,1768916595519,224.68,0.00027397,120]
[402810810,1768916602180,567.58,0.00027397,120]
[402810811,1768916606068,500.0,0.00027397,120]
[402810812,1768916608007,500.0,0.00027397,120]
[402810813,1768916608248,286.68,0.00027397,120]
[402810814,1768916611152,500.0,0.00027397,120]
[402810815,1768916613066,500.0,0.00027397,120]
[402810816,1768916620750,366.0,0.00027397,120]
[402810817,1768916622817,500.0,0.00027397,120]
[402810818,1768916625224,603.09404447,0.00027397,120]
[402810819,1768916627000,500.0,0.00027397,120]
[402810820,1768916627221,505.65,0.00027397,120]
[402810821,1768916629574,500.0,0.00027397,120]
[402810822,1768916629835,247.34,0.00027397,120]
[402810823,1768916630476,500.0,0.00027397,120]
[402810824,1768916633714,500.0,0.00027397,120]
[402810825,1768916635550,500.0,0.00027397,120]
[402810826,1768916657947,500.0,0.00027397,120]
[402810827,1768916668056,500.0,0.00027397,120]
[402810828,1768916697837,500.0,0.00027397,120]
[402810829,1768916712000,500.0,0.00027397,120]
[402810830,1768916715586,500.0,0.00027397,120]
[402810831,1768916720459,500.0,0.00027397,120]
[402810832,1768916744339,500.0,0.00027397,120]
[402810833,1768916747255,500.0,0.00027397,120]
[402810834,1768916750508,500.0,0.00027397,120]
[402811127,1768917038649,-305.39779916,0.00010154,2]
[402811128,1768917038659,-437.945,0.00010213,2]
[402811129,1768917038669,-228.9712961,0.00010221,2]
[402811130,1768917038678,-30491.57134679,0.00010222,2]
[402811131,1768917038690,-215008.39191584,0.00010222,2]
[402811132,1768917038701,-99046.0959628,0.00010222,2]
[402811133,1768917038739,-808233.69609874,0.00010222,2]
[402811134,1768917038748,-300.0,0.00010319,2]
[402811135,1768917038758,-300.0,0.00010319,2]
[402811136,1768917038767,-1200.0,0.00010319,2]
[402811137,1768917038779,-225.21556919,0.0001032,2]
[402811138,1768917038788,-500.0,0.0001032,2]
[402811139,1768917038799,-577.25211387,0.0001032,2]
[402811140,1768917038812,-500.0,0.0001032,2]
[402811141,1768917038821,-500.0,0.0001032,2]
[402811142,1768917038830,-500.0,0.0001032,2]
[402811143,1768917038840,-500.0,0.0001032,2]
[402811144,1768917038850,-500.0,0.0001032,2]
[402811145,1768917038860,-500.0,0.0001032,2]
[402811146,1768917038869,-500.0,0.0001032,2]
[402811147,1768917038880,-500.0,0.0001032,2]
[402811148,1768917038889,-500.0,0.0001032,2]
[402811149,1768917038899,-500.0,0.0001032,2]
[402811150,1768917038908,-500.0,0.0001032,2]
[402811151,1768917038919,-500.0,0.0001032,2]
[402811152,1768917038928,-308.7706337,0.0001032,2]
[402811153,1768917038937,-500.0,0.0001032,2]
[402811154,1768917038947,-500.0,0.0001032,2]
[402811155,1768917038956,-500.0,0.0001032,2]
[402811156,1768917038966,-320.00906158,0.0001032,2]
[402811158,1768917038975,-558.94061947,0.0001032,2]
[402811160,1768917038984,-500.0,0.0001032,2]
[402811182,1768917039151,-500.0,0.0001032,2]
[402811185,1768917039209,-500.0,0.0001032,2]
[402811187,1768917039219,-500.0,0.0001032,2]
[402811189,1768917039228,-500.0,0.0001032,2]
[402811191,1768917039237,-500.0,0.0001032,2]
[402811193,1768917039246,-298.03072012,0.0001032,2]
[402811195,1768917039259,-500.0,0.0001032,2]
[402811197,1768917039268,-500.0,0.0001032,2]
[402811199,1768917039277,-500.0,0.0001032,2]
[402811201,1768917039285,-500.0,0.0001032,2]
[402811203,1768917039294,-500.0,0.0001032,2]
[402811205,1768917039303,-500.0,0.0001032,2]
[402811207,1768917039312,-500.0,0.0001032,2]
[402811209,1768917039321,-500.0,0.0001032,2]
[402811211,1768917039330,-500.0,0.0001032,2]
[402811213,1768917039338,-500.0,0.0001032,2]
[402811214,1768917039348,-500.0,0.0001032,2]
[402811216,1768917039357,-500.0,0.0001032,2]
[402811219,1768917039367,-500.0,0.0001032,2]
[402811220,1768917039376,-500.0,0.0001032,2]
[402811223,1768917039386,-197.27633207,0.0001032,2]
[402811226,1768917039405,-308.8291338,0.0001032,2]
[402811228,1768917039414,-281.84,0.0001032,2]
[402811230,1768917039423,-42931.9078698,0.00010321,2]
[402811232,1768917039433,-1000000.0,0.00010322,2]
[402811234,1768917039443,-500.0,0.00010322,2]
[402811236,1768917039455,-960.9536129,0.00010494,2]
[402811238,1768917039464,-8553.7343938,0.00010494,2]
[402811240,1768917039473,-1000.0,0.000106,2]
[402811242,1768917039483,-5798.80248155,0.0001065,2]
[402811244,1768917039492,-151.0,0.00011,2]
[402811246,1768917039502,-420.0,0.00011347,2]
[402811248,1768917039513,-1011.0,0.00011351,2]
[402811250,1768917039522,-500.0,0.00011371,2]
[402811252,1768917039532,-178.53359858,0.000115,2]
[402811254,1768917039542,-1041.66666667,0.00011507,2]
[402811256,1768917039551,-600.0,0.00011508,2]
[402811258,1768917039561,-500.0,0.00011508,2]
[402811260,1768917039570,-500.0,0.00011508,2]
[402811262,1768917039579,-960.9536129,0.00011564,2]
[402811264,1768917039588,-178.53359858,0.000116,2]
[402811266,1768917039598,-500.0,0.00011645,2]
[402811268,1768917039607,-500.0,0.00011645,2]
[402811270,1768917039617,-178.53359858,0.000117,2]
[402811272,1768917039626,-500.0,0.00011782,2]
[402811274,1768917039635,-200.0,0.00011782,2]
[402811276,1768917039644,-200.0,0.00011782,2]
[402811278,1768917039654,-284.24861094,0.00011782,2]
[402811280,1768917039663,-180.0,0.00011782,2]
[402811282,1768917039673,-629.0,0.000119,2]
[402811285,1768917039682,-1368.0,0.000119,2]
[402811287,1768917039691,-2148.0,0.000119,2]
[402811289,1768917039701,-159.96825339,0.00011919,2]
[402811291,1768917039710,-266.84280402,0.00011919,2]
[402811293,1768917039719,-155.65218958,0.00012056,2]
[402811295,1768917039729,-212.76843359,0.00012056,2]
[402811297,1768917039738,-360.36940301,0.00012154,2]
[402811299,1768917039747,-179.63963847,0.00012193,2]
[402811301,1768917039757,-821.36,0.00012329,2]
[402811303,1768917039766,-684.46,0.00012329,2]
[402811305,1768917039776,-570.39,0.00012329,2]
[402811307,1768917039785,-475.32,0.00012329,2]
[402811309,1768917039796,-396.1,0.00012329,2]
[402811311,1768917039807,-330.09,0.00012329,2]
[402811313,1768917039816,-275.07,0.00012329,2]
[402811315,1768917039826,-229.23,0.00012329,2]
[402811317,1768917039835,-191.02,0.00012329,2]
[402811319,1768917039846,-159.18,0.00012329,2]
[402811321,1768917039855,-795.95,0.00012329,2]
[402811323,1768917039864,-200.0,0.00012329,2]
[402811325,1768917039873,-1908.5961251,0.00012337,2]
[402811327,1768917039882,-182.52481675,0.00012466,2]
[402811329,1768917039892,-587.0,0.00012478,2]
[402811331,1768917039901,-222.095,0.00012562,2]
[402811333,1768917039911,-267.778,0.00012562,2]
[402811335,1768917039920,-960.9536129,0.00012635,2]
[402811337,1768917039930,-336.0,0.00012658,2]
[402811339,1768917039940,-336.0,0.00012691,2]
[402811341,1768917039950,-336.0,0.00012695,2]
[402811343,1768917039960,-425.865359,0.00012748,2]
[402811344,1768917039970,-779.0,0.000128,2]
[402811345,1768917039980,-336.0,0.00012871,2]
[402811346,1768917039990,-160.0,0.000129,2]
[402811347,1768917039999,-336.0,0.00012909,2]
[402811348,1768917040009,-336.0,0.00012954,2]
[402811349,1768917040019,-336.0,0.00013027,2]
[402811350,1768917040028,-336.0,0.00013036,2]
[402811351,1768917040038,-336.0,0.00013097,2]
[402811352,1768917040048,-336.0,0.00013189,2]
[402811353,1768917040058,-336.0,0.00013198,2]
[402811354,1768917040067,-336.0,0.000132,2]
[402811355,1768917040078,-500.0,0.00013273,2]
[402811356,1768917040087,-500.0,0.00013273,2]
[402811357,1768917040097,-213.38797913,0.00013273,2]
[402811358,1768917040107,-500.0,0.00013273,2]
[402811359,1768917040117,-455.9656943,0.00013273,2]
[402811360,1768917040126,-336.0,0.00013275,2]
[402811361,1768917040136,-336.0,0.00013285,2]
[402811362,1768917040145,-336.0,0.0001333,2]
[402811363,1768917040155,-336.0,0.00013372,2]
[402811364,1768917040165,-336.0,0.00013388,2]
[402811365,1768917040176,-4159.166169,0.000134,60]
[402811366,1768917040185,-336.0,0.00013442,2]
[402811367,1768917040195,-851953.6204199,0.0001354,2]
[402811368,1768917040204,-336.0,0.00013553,2]
[402811369,1768917040214,-336.0,0.00013557,2]
[402811370,1768917040228,-336.0,0.00013571,2]
[402811371,1768917040238,-311.44191056,0.00013673,2]
[402811372,1768917040248,-336.0,0.00013679,2]
[402811373,1768917040259,-1000.0,0.00013699,2]
[402811374,1768917040269,-1013.0282973,0.00013699,2]
[402811376,1768917040278,-1411.562776,0.00013699,2]
[402811378,1768917040287,-3970.8556316,0.00013699,2]
[402811380,1768917040297,-502.22217632,0.00013699,2]
[402811381,1768917040307,-500.0,0.00013699,2]
[402811382,1768917040316,-500.0,0.00013699,2]
[402811383,1768917040326,-503.05052552,0.00013699,2]
[402811384,1768917040335,-505.74425275,0.00013699,2]
[402811385,1768917040345,-503.09819727,0.00013699,2]
[402811386,1768917040354,-500.0,0.00013699,2]
[402811387,1768917040363,-504.10954012,0.00013699,2]
[402811388,1768917040373,-500.0,0.00013699,2]
[402811389,1768917040383,-500.0,0.00013699,2]
[402811390,1768917040392,-585.15540137,0.00013699,2]
[402811391,1768917040402,-302.85943076,0.00013699,2]
[402811392,1768917040411,-500.0,0.00013699,2]
[402811393,1768917040420,-500.0,0.00013699,2]
[402811394,1768917040429,-500.0,0.00013699,2]
[402811395,1768917040439,-500.0,0.00013699,2]
[402811396,1768917040448,-500.0,0.00013699,2]
[402811397,1768917040457,-242.41164027,0.00013699,2]
[402811398,1768917040466,-500.0,0.00013699,2]
[402811399,1768917040475,-960.9536129,0.00013705,2]
[402811400,1768917040485,-200.0,0.00013719,2]
[402811401,1768917040494,-38000.0,0.0001372,3]
[402811402,1768917040504,-21615.08960309,0.0001372,3]
[402811403,1768917040514,-703.0,0.00013721,2]
[402811404,1768917040524,-155.157,0.00013756,2]
[402811405,1768917040533,-160.0,0.000138,2]
[402811406,1768917040542,-1000.0,0.00013821,2]
[402811407,1768917040552,-1000.0,0.00013821,2]
[402811408,1768917040561,-1000.0,0.00013821,2]
[402811409,1768917040571,-336.0,0.00013839,2]
[402811410,1768917040581,-336.0,0.00013885,2]
[402811411,1768917040591,-336.0,0.00013923,2]
[402811412,1768917040600,-159.62665952,0.0001393,2]
[402811413,1768917040609,-205.28265895,0.00013989,2]
[402811414,1768917040619,-100000.0,0.0001399,2]
[402811415,1768917040630,-169.56631138,0.00014,30]
[402811416,1768917040639,-3608.22577453,0.00014,7]
[402811417,1768917040649,-8654.802861,0.00014125,7]
[402811418,1768917040658,-415.34100686,0.00014154,2]
[402811419,1768917040668,-169.56631138,0.00014192,30]
[402811420,1768917040677,-177.2234,0.00014192,30]
[402811421,1768917040687,-165.85165,0.00014192,30]
[402811422,1768917040697,-151.0,0.00014217,2]
[402811423,1768917040706,-151.0,0.00014217,2]
[402811424,1768917040715,-445.202766,0.00014217,2]
[402811425,1768917040724,-151.0,0.00014217,2]
[402811426,1768917040734,-151.0,0.00014217,2]
[402811427,1768917040743,-174.25411433,0.00014217,2]
[402811428,1768917040752,-2000.0,0.00014217,2]
[402811429,1768917040762,-151.0,0.00014217,2]
[402811430,1768917040771,-162.380719,0.00014217,2]
[402811431,1768917040781,-162.380719,0.00014217,2]
[402811432,1768917040791,-151.0,0.00014217,2]
[402811433,1768917040804,-2000.0,0.00014217,2]
[402811434,1768917040817,-151.0,0.00014217,2]
[402811435,1768917040826,-168.3888056,0.00014217,2]
[402811436,1768917040836,-151.0,0.00014217,2]
[402811437,1768917040847,-2000.0,0.00014217,2]
[402811438,1768917040856,-151.0,0.00014217,2]
[402811439,1768917040866,-1957.856,0.00014217,2]
[402811440,1768917040878,-174.61919141,0.00014217,2]
[402811441,1768917040887,-151.0,0.00014217,2]
[402811442,1768917040900,-2000.0,0.00014217,2]
[402811443,1768917040909,-151.0,0.00014217,2]
[402811444,1768917040919,-250.0,0.00014217,2]
[402811445,1768917040929,-181.08010149,0.00014217,2]
[402811446,1768917040938,-151.0,0.00014217,2]
[402811447,1768917040947,-2000.0,0.00014217,2]
[402811448,1768917040956,-151.0,0.00014217,2]
[402811449,1768917040965,-250.0,0.00014217,2]
[402811450,1768917040975,-187.78006525,0.00014217,2]
[402811451,1768917040984,-151.0,0.00014217,2]
[402811452,1768917040993,-151.0,0.00014217,2]
[402811453,1768917041003,-250.0,0.00014217,2]
[402811454,1768917041012,-194.72792766,0.00014217,2]
[402811455,1768917041022,-151.0,0.00014217,2]
[402811456,1768917041032,-151.0,0.00014217,2]
[402811457,1768917041041,-250.0,0.00014217,2]
[402811458,1768917041050,-201.93286099,0.00014217,2]
[402811459,1768917041059,-151.0,0.00014217,2]
[402811460,1768917041068,-250.0,0.00014217,2]
[402811461,1768917041078,-151.0,0.00014217,2]
[402811462,1768917041088,-209.40437684,0.00014217,2]
[402811463,1768917041097,-2000.0,0.00014217,2]
[402811464,1768917041107,-151.0,0.00014217,2]
[402811465,1768917041117,-250.0,0.00014217,2]
[402811466,1768917041126,-217.15233878,0.00014217,2]
[402811467,1768917041136,-692.04553162,0.00014217,2]
[402811468,1768917041145,-151.0,0.00014217,2]
[402811469,1768917041155,-151.0,0.00014217,2]
[402811470,1768917041165,-250.0,0.00014217,2]
[402811471,1768917041174,-225.18697532,0.00014217,2]
[402811472,1768917041183,-151.0,0.00014217,2]
[402811474,1768917041192,-151.0,0.00014217,2]
[402811476,1768917041201,-233.51889341,0.00014217,2]
[402811477,1768917041211,-250.0,0.00014217,2]
[402811479,1768917041220,-151.0,0.00014217,2]
[402811481,1768917041230,-151.0,0.00014217,2]
[402811483,1768917041239,-250.0,0.00014217,2]
[402811484,1768917041248,-242.15909246,0.00014217,2]
[402811485,1768917041258,-151.0,0.00014217,2]
[402811486,1768917041268,-250.0,0.00014217,2]
[402811487,1768917041277,-251.11897888,0.00014217,2]
[402811488,1768917041287,-151.0,0.00014217,2]
[402811489,1768917041297,-151.0,0.00014217,2]
[402811490,1768917041306,-260.4103811,0.00014217,2]
[402811491,1768917041315,-151.0,0.00014217,2]
[402811492,1768917041324,-250.0,0.00014217,2]
[402811493,1768917041333,-151.0,0.00014217,2]
[402811494,1768917041343,-270.0455652,0.00014217,2]
[402811495,1768917041353,-250.0,0.00014217,2]
[402811496,1768917041362,-151.0,0.00014217,2]
[402811497,1768917041372,-151.0,0.00014217,2]
[402811498,1768917041381,-280.03725112,0.00014217,2]
[402811499,1768917041392,-250.0,0.00014217,2]
[402811500,1768917041401,-151.0,0.00014217,2]
[402811501,1768917041417,-151.0,0.00014217,2]
[402811502,1768917041438,-250.0,0.00014217,2]
[402811503,1768917041459,-290.39862941,0.00014217,2]
[402811504,1768917041480,-151.0,0.00014217,2]
[402811505,1768917041502,-151.0,0.00014217,2]
[402811506,1768917041516,-250.0,0.00014217,2]
[402811507,1768917041526,-151.0,0.00014217,2]
[402811508,1768917041538,-301.1433787,0.00014217,2]
[402811509,1768917041549,-250.0,0.00014217,2]
[402811510,1768917041559,-151.0,0.00014217,2]
[402811511,1768917041570,-250.0,0.00014217,2]
[402811512,1768917041580,-2150.738,0.00014217,2]
[402811513,1768917041589,-250.0,0.00014217,2]
[402811514,1768917041599,-204.47905083,0.00014217,2]
[402811515,1768917041608,-250.0,0.00014217,2]
[402811516,1768917041618,-279.35522609,0.00014217,2]
[402811517,1768917041629,-162.380719,0.00014217,2]
[402811518,1768917041638,-250.0,0.00014217,2]
[402811519,1768917041647,-250.0,0.00014217,2]
[402811520,1768917041656,-2000.0,0.00014217,2]
[402811521,1768917041665,-1507.19234385,0.00014217,2]
[402811522,1768917041673,-644.02345,0.00014247,7]
[402811523,1768917041683,-1011.998816,0.00014247,7]
[402811524,1768917041692,-2194.855102,0.00014247,7]
[402811525,1768917041701,-161.005863,0.00014247,7]
[402811526,1768917041710,-328.79744204,0.00014247,2]
[402811527,1768917041719,-26608.41326,0.00014247,7]
[402811528,1768917041729,-440.263965,0.00014247,7]
[402811529,1768917041738,-1000.0,0.00014247,2]
[402811530,1768917041747,-250.0,0.00014247,2]
[402811531,1768917041757,-569.34649932,0.00014247,2]
[402811532,1768917041766,-208.53826736,0.00014247,2]
[402811533,1768917041776,-500.44782323,0.00014247,2]
[402811534,1768917041785,-1000.0,0.00014247,2]
[402811535,1768917041795,-1000.0,0.00014247,2]
[402811536,1768917041807,-292.186621,0.00014268,7]
[402811537,1768917041816,-580.598114,0.00014268,7]
[402811538,1768917041826,-2030.296672,0.00014272,2]
[402811539,1768917041835,-21474.911719,0.000143,7]
[402811540,1768917041846,-26772.383719,0.000143,7]
[402811541,1768917041856,-204.940582,0.000143,7]
[402811542,1768917041866,-17879.82997,0.00014305,7]
[402811543,1768917041877,-604.411472,0.00014305,7]
[402811544,1768917041886,-1772.297772,0.00014305,7]
[402811545,1768917041895,-7164.327292,0.00014327,7]
[402811546,1768917041903,-3682.242976,0.00014327,7]
[402811547,1768917041913,-2105.41764886,0.00014327,2]
[402811548,1768917041922,-5530.56933617,0.00014327,2]
[402811549,1768917041931,-169.56631138,0.00014356,30]
[402811550,1768917041940,-177.2234,0.00014356,30]
[402811551,1768917041950,-165.85165,0.00014356,30]
[402811552,1768917041959,-1500.0,0.00014368,2]
[402811553,1768917041968,-1500.0,0.00014368,2]
[402811554,1768917041978,-1500.0,0.00014368,2]
[402811555,1768917041987,-12807.979586,0.00014382,7]
[402811556,1768917041998,-2183.31810187,0.00014382,2]
[402811557,1768917042007,-160.0,0.00014429,3]
[402811558,1768917042016,-19186.874999,0.00014429,7]
[402811559,1768917042025,-2824.209426,0.00014437,7]
[402811560,1768917042035,-2264.10087164,0.00014437,2]
[402811561,1768917042043,-921.7782227,0.00014472,30]
[402811562,1768917042053,-2347.87260389,0.00014492,2]
[402811563,1768917042062,-5000.0,0.0001451,2]
[402811564,1768917042071,-2434.74389024,0.00014547,2]
[402811565,1768917042080,-169.56631138,0.00014548,30]
[402811566,1768917042089,-177.2234,0.00014548,30]
[402811567,1768917042099,-812.12382401,0.00014602,2]
[402811568,1768917042107,-921.7782227,0.00014616,30]
[402811569,1768917042116,-921.7782227,0.00014761,30]
[402811570,1768917042125,-461.67526834,0.00014765,2]
[402811571,1768917042136,-168.3888056,0.00014765,2]
[402811572,1768917042145,-2230.315306,0.00014765,2]
[402811573,1768917042154,-1500.0,0.00014795,2]
[402811574,1768917042163,-150.3597766,0.00014795,2]
[402811575,1768917042172,-1005.23507855,0.00014795,2]
[402811576,1768917042181,-1500.0,0.00014795,2]
[402811577,1768917042189,-629.0,0.000149,2]
[402811578,1768917042198,-1368.0,0.000149,2]
[402811579,1768917042207,-2148.0,0.000149,2]
[402811580,1768917042216,-162.0,0.000149,2]
[402811581,1768917042225,-595.41263831,0.000149,2]
[402811582,1768917042235,-921.7782227,0.00014906,30]
[402811583,1768917042243,-2000.0,0.00014916,2]
[402811584,1768917042253,-2000.0,0.00014916,2]
[402811585,1768917042262,-2000.0,0.00014916,2]
[402811586,1768917042271,-3545.59172598,0.00015,2]
[402811587,1768917042280,-151.11503829,0.00015,2]
[402811588,1768917042289,-5000.0,0.00015,2]
[402811589,1768917042298,-921.7782227,0.00015051,30]
[402811590,1768917042307,-10000.0,0.00015057,2]
[402811591,1768917042316,-556.426707,0.00015068,2]
[402811592,1768917042325,-10000.0,0.00015114,2]
[402811593,1768917042334,-10000.0,0.00015114,2]
[402811594,1768917042343,-10000.0,0.00015114,2]
[402811595,1768917042352,-2447.61,0.00015114,2]
[402811596,1768917042361,-921.7782227,0.00015196,30]
[402811597,1768917042370,-159.17,0.00015265,2]
[402811598,1768917042379,-478.75725327,0.00015313,2]
[402811599,1768917042388,-174.61919141,0.00015313,2]
[402811600,1768917042397,-2312.83697232,0.00015313,2]
[402811601,1768917042407,-921.7782227,0.00015341,30]
[402811602,1768917042416,-2000.0,0.00015342,2]
[402811603,1768917042425,-2000.0,0.00015342,2]
[402811604,1768917042434,-549.0286876,0.000154,2]
[402811605,1768917042443,-2500.0,0.00015464,2]
[402811606,1768917042453,-2500.0,0.00015464,2]
[402811607,1768917042462,-972.13320587,0.00015464,2]
[402811608,1768917042471,-921.7782227,0.00015485,30]
[402811609,1768917042481,-159.15,0.0001557,2]
[402811610,1768917042490,-921.7782227,0.0001563,30]
[402811611,1768917042500,-160.49,0.00015769,2]
[402811612,1768917042509,-921.7782227,0.00015775,30]
[402811613,1768917042519,-160.0,0.000158,3]
[402811614,1768917042529,-496.47127164,0.00015861,2]
[402811615,1768917042539,-181.08010149,0.00015861,2]
[402811616,1768917042548,-2398.4119403,0.00015861,2]
[402811617,1768917042557,-305.2501772,0.00015882,2]
[402811618,1768917042566,-2508.10450039,0.0001589,2]
[402811619,1768917042575,-2500.0,0.0001589,2]
[402811620,1768917042584,-151.0,0.00015953,2]
[402811621,1768917042593,-151.0,0.00015953,2]
[402811622,1768917042602,-151.0,0.00015953,2]
[402811623,1768917042612,-158.327138,0.00015953,2]
[402811624,1768917042621,-8964.69750542,0.00015953,2]
[402811625,1768917042642,-5000.0,0.00015953,2]
[402811626,1768917042660,-5000.0,0.00015953,2]
[402811627,1768917042670,-5000.0,0.00015953,2]
[402811628,1768917042679,-5000.0,0.00015953,2]
[402811629,1768917042689,-1334.61496379,0.00015964,2]
[402811630,1768917042698,-8551.81499598,0.00015988,2]
[402811631,1768917042707,-3000.0,0.00016,2]
[402811632,1768917042717,-14032.0,0.00016,2]
[402811633,1768917042726,-216.04290784,0.00016,2]
[402811634,1768917042734,-160.0,0.00016002,4]
[402811635,1768917042743,-160.97220368,0.00016002,5]
[402811636,1768917042753,-3000.0,0.0001601,2]
[402811637,1768917042764,-3011.40916233,0.00016012,2]
[402811638,1768917042773,-2893.65388347,0.00016012,2]
[402811639,1768917042782,-3000.0,0.0001602,2]
[402811640,1768917042791,-3000.0,0.0001603,2]
[402811641,1768917042800,-3000.0,0.0001604,2]
[402811642,1768917042813,-3000.0,0.0001605,2]
[402811643,1768917042822,-3000.0,0.0001606,2]
[402811645,1768917042831,-3000.0,0.0001607,2]
[402811647,1768917042840,-3000.0,0.0001608,2]
[402811649,1768917042851,-3000.0,0.0001609,2]
[402811651,1768917042860,-3000.0,0.000161,2]
[402811653,1768917042870,-3000.0,0.0001611,2]
[402811655,1768917042879,-3000.0,0.0001612,2]
[402811657,1768917042889,-3000.0,0.0001613,2]
[402811659,1768917042898,-3000.0,0.0001614,2]
[402811661,1768917042907,-3000.0,0.0001615,2]